[Event "Western Asian Juniors Chess-ch 2023"]
[Site "Colombo"]
[Date "2023.11.30"]
[Round "1.7"]
[White "Galkotuwa, K A R G W D R B G"]
[Black "Manon, Reja Neer"]
[Result "1-0"]
[ECO "B15"]
[WhiteElo "1532"]
[BlackElo "2207"]
[Annotator "RC"]
[PlyCount "119"]
[EventDate "2023.11.30"]
[EventCountry "SRI"]
[SourceTitle "playchess.com"]
[Source "ChessBase"]
[SourceQuality "1"]
[TimeControl "5400+30"]

1. e4 {[%emt 0:00:08]} c6 {[%emt 0:01:14]} 2. d4 {[%emt 0:00:32]} d5 {[%emt 0:00:07]} 3. Nc3 {[%emt 0:00:28]} dxe4 {[%emt 0:00:59]} 4. Nxe4 {[%emt 0:00:30]} Nf6 {[%emt 0:00:04]} 5. Nxf6+ {[%emt 0:01:11]} exf6 {[%emt 0:00:01]} 6. c3 {[%emt 0:00:27]} Bd6 {[%emt 0:00:16]} 7. Bd3 {[%emt 0:00:30]} O-O {[%emt 0:00:02]} 8. Qc2 {[%emt 0:00:27]} Re8+ {[%emt 0:00:05]} 9. Ne2 {[%emt 0:00:53]} h5 {[%emt 0:00:02]} 10. Be3 {[%emt 0:05:04]} Nd7 {[%emt 0:00:17]} 11. O-O-O {[%emt 0:01:07]} Nf8 {[%emt 0:00:02]} 12. c4 {[%emt 0:02:50]} Be6 {[%emt 0:00:29]} 13. Nc3 {[%emt 0:08:27]} Bb4 {[%emt 0:02:14]} 14. Be2 {[%emt 0:01:26]} Qa5 {[%emt 0:07:14]} 15. a3 {[%emt 0:03:51]} Bxc3 {[%emt 0:20:38]} 16. Qxc3 {[%emt 0:00:44]} Qxc3+ {[%emt 0:09:30]} 17. bxc3 {[%emt 0:00:12]} Rad8 {[%emt 0:06:32]} 18. Rd2 {[%emt 0:05:23]} Rd7 {[%emt 0:01:43]} 19. Rhd1 {[%emt 0:05:05]} Red8 {[%emt 0:00:16]} 20. h3 {[%emt 0:03:31]} h4 {[%emt 0:03:55]} 21. Bd3 {[%emt 0:06:39]} Ng6 {[%emt 0:03:18]} 22. Re1 {[%emt 0:10:41]} Ne5 {[%emt 0:08:41]} 23. dxe5 {[%emt 0:02:41]} Rxd3 {[%emt 0:00:03]} 24. Rxd3 {[%emt 0:02:01]} Rd5 {[%emt 0:34:48]} 25. Rd4 Rxd4 {[%emt 0:00:00]} 26. Kc2 {[%emt 0:01:40]} Rd3 {[%emt 0:00:00]} 27. Kb3 {[%emt 0:01:39]} Bf5 {[%emt 0:00:00]} 28. Bxa7 fxe5 {[%emt 0:00:00]} 29. Be3 {[%emt 0:02:00]} f6 {[%emt 0:00:00]} 30. a4 {[%emt 0:02:42]} Kf7 {[%emt 0:00:00]} 31. a5 {[%emt 0:01:03]} Ke7 {[%emt 0:00:00]} 32. Ra1 {[%emt 0:04:13]} Kd7 {[%emt 0:00:00]} 33. Rd1 {[%emt 0:28:55]} g5 34. Re1 {[%emt 0:00:00]} Ke6 {[%emt 0:00:00]} 35. Ra1 {[%emt 0:00:00]} Kf7 {[%emt 0:00:00]} 36. Rc1 {[%emt 0:00:00]} Kg6 {[%emt 0:00:00]} 37. Kb4 {[%emt 0:00:00]} Be4 {[%emt 0:00:00]} 38. Rg1 {[%emt 0:00:00]} f5 {[%emt 0:00:00]} 39. Bb6 {[%emt 0:00:00]} Rd2 {[%emt 0:00:00]} 40. f3 {[%emt 0:00:00]} Bd3 {[%emt 0:00:00]} 41. g3 {[%emt 0:00:00]} hxg3 {[%emt 0:01:41]} 42. Rxg3 {[%emt 0:00:00]} Be2 {[%emt 0:02:21]} 43. Rg2 {[%emt 0:00:00]} e4 {[%emt 0:02:58]} 44. fxe4 {[%emt 0:00:00]} f4 {[%emt 0:00:20]} 45. h4 {[%emt 0:00:18]} g4 {[%emt 0:02:33]} 46. Bc7 {[%emt 0:00:06]} f3 {[%emt 0:00:35]} 47. Rxg4+ {[%emt 0:00:11]} Kh5 {[%emt 0:00:10]} 48. Rf4 {[%emt 0:00:19]} Rd7 {[%emt 0:00:27]} 49. Bb6 {[%emt 0:00:40]} Rg7 {[%emt 0:00:26]} 50. e5 {[%emt 0:00:46]} Re7 {[%emt 0:00:26]} 51. Bd4 {[%emt 0:00:22]} Re6 {[%emt 0:00:09]} 52. Kc5 {[%emt 0:00:26]} Kg6 {[%emt 0:00:31]} 53. Rf6+ {[%emt 0:01:18]} Rxf6 {[%emt 0:00:06]} 54. exf6 {[%emt 0:00:04]} Bd3 {[%emt 0:00:52]} 55. Kb6 {[%emt 0:01:54]} c5 {[%emt 0:00:25]} 56. Kxc5 {[%emt 0:00:10]} f2 {[%emt 0:00:32]} 57. Bxf2 {[%emt 0:00:02]} Kxf6 {[%emt 0:00:08]} 58. Kb6 {[%emt 0:00:23]} Be4 {[%emt 0:00:07]} 59. c5 {[%emt 0:00:19]} Ke7 {[%emt 0:00:38]} 60. c6 {[%emt 0:00:56]} 1-0

[Event "Western Asian Juniors Chess-ch 2023"]
[Site "Colombo"]
[Date "2023.11.30"]
[Round "1.8"]
[White "Mazhkenov, Alisher"]
[Black "Sumanathilake, Yonal"]
[Result "1-0"]
[ECO "A13"]
[WhiteElo "2105"]
[BlackElo "1524"]
[Annotator "RC"]
[PlyCount "105"]
[EventDate "2023.11.30"]
[EventCountry "SRI"]
[SourceTitle "playchess.com"]
[Source "ChessBase"]
[SourceQuality "1"]
[TimeControl "5400+30"]

1. Nf3 {[%emt 0:00:04]} Nf6 {[%emt 0:00:25]} 2. c4 {[%emt 0:00:09]} e6 {[%emt 0:00:19]} 3. e3 {[%emt 0:00:58]} d5 {[%emt 0:01:04]} 4. b3 {[%emt 0:02:23]} b6 {[%emt 0:01:10]} 5. Bb2 {[%emt 0:00:51]} Bb7 {[%emt 0:00:32]} 6. Nc3 {[%emt 0:00:35]} Nbd7 {[%emt 0:03:12]} 7. cxd5 {[%emt 0:01:10]} exd5 {[%emt 0:01:01]} 8. Ne2 {[%emt 0:09:48]} g6 {[%emt 0:13:51]} 9. g3 {[%emt 0:03:09]} Bg7 {[%emt 0:07:07]} 10. Bg2 {[%emt 0:01:30]} O-O {[%emt 0:04:09]} 11. O-O {[%emt 0:01:12]} Qe7 {[%emt 0:05:27]} 12. Rc1 {[%emt 0:03:10]} c5 {[%emt 0:01:39]} 13. Nf4 {[%emt 0:12:48]} Rfd8 {[%emt 0:04:16]} 14. d4 {[%emt 0:04:10]} Ne4 {[%emt 0:11:26]} 15. Qe2 {[%emt 0:05:11]} Rac8 {[%emt 0:06:03]} 16. dxc5 {[%emt 0:13:52]} bxc5 {[%emt 0:02:01]} 17. Bxg7 {[%emt 0:05:28]} Kxg7 {[%emt 0:00:18]} 18. Rfd1 {[%emt 0:01:30]} Ndf6 {[%emt 0:03:44]} 19. Qb2 {[%emt 0:06:15]} Kg8 {[%emt 0:03:11]} 20. Qe5 {[%emt 0:05:41]} Qf8 {[%emt 0:09:54]} 21. h3 {[%emt 0:03:21]} Re8 {[%emt 0:01:49]} 22. Qb2 {[%emt 0:00:39]} Qe7 {[%emt 0:02:11]} 23. Re1 {[%emt 0:04:11]} Rcd8 {[%emt 0:09:00]} 24. Nd2 {[%emt 0:02:09]} Nxd2 {[%emt 0:05:02]} 25. Qxd2 {[%emt 0:00:15]} Ne4 {[%emt 0:00:04]} 26. Qc2 {[%emt 0:02:32]} Rc8 {[%emt 0:00:47]} 27. Qb2 {[%emt 0:02:14]} Red8 {[%emt 0:01:03]} 28. Red1 {[%emt 0:00:50]} Rc7 {[%emt 0:01:44]} 29. Qc2 {[%emt 0:01:53]} Qe5 {[%emt 0:01:33]} 30. Bxe4 {[%emt 0:00:33]} Rcd7 {[%emt 0:00:57]} 31. Bg2 {[%emt 0:00:28]} Rc7 {[%emt 0:00:21]} 32. Nd3 {[%emt 0:00:26]} Qe7 {[%emt 0:00:08]} 33. Nxc5 {[%emt 0:00:34]} Rdc8 {[%emt 0:00:21]} 34. b4 {[%emt 0:00:12]} a5 {[%emt 0:00:03]} 35. a3 {[%emt 0:00:24]} axb4 {[%emt 0:00:15]} 36. axb4 {[%emt 0:00:05]} Bc6 {[%emt 0:00:13]} 37. Bxd5 {[%emt 0:00:30]} Bxd5 {[%emt 0:00:06]} 38. Rxd5 {[%emt 0:00:07]} Rb8 {[%emt 0:00:13]} 39. Rcd1 {[%emt 0:00:16]} h5 {[%emt 0:00:24]} 40. Qd2 {[%emt 0:00:24]} Rbc8 {[%emt 0:00:12]} 41. Rd8+ {[%emt 0:00:19]} Kh7 {[%emt 0:00:10]} 42. Rxc8 {[%emt 0:00:51]} Rxc8 {[%emt 0:00:02]} 43. Qd7 {[%emt 0:00:12]} Qf8 {[%emt 0:00:14]} 44. Ne6 {[%emt 0:00:13]} Qg8 {[%emt 0:00:08]} 45. Ng5+ {[%emt 0:00:28]} Kg7 {[%emt 0:00:11]} 46. Nxf7 {[%emt 0:00:14]} Rf8 {[%emt 0:00:34]} 47. Nd8+ {[%emt 0:02:37]} Kh6 {[%emt 0:00:15]} 48. Ne6 {[%emt 0:00:26]} Rf6 {[%emt 0:01:25]} 49. Rd6 {[%emt 0:00:28]} h4 {[%emt 0:00:24]} 50. g4 {[%emt 0:00:11]} Rf3 {[%emt 0:00:14]} 51. g5+ {[%emt 0:00:37]} Kh5 {[%emt 0:00:08]} 52. Ng7+ {[%emt 0:00:08]} Qxg7 {[%emt 0:00:15]} 53. Qg4# {[%emt 0:00:06]} 1-0

[Event "Western Asian Juniors Chess-ch 2023"]
[Site "Colombo"]
[Date "2023.11.30"]
[Round "1.9"]
[White "Induwara, T H D Thisarindu"]
[Black "Hommadov, Amanmuhammet"]
[Result "0-1"]
[ECO "B52"]
[WhiteElo "1494"]
[BlackElo "2055"]
[Annotator "NA RC"]
[PlyCount "91"]
[EventDate "2023.11.30"]
[EventCountry "SRI"]
[SourceTitle "playchess.com"]
[Source "ChessBase"]
[SourceQuality "1"]
[TimeControl "5400+30"]

1. e4 {[%emt 0:03:41]} c5 {[%emt 0:00:11]} 2. Nf3 {[%emt 0:00:05]} d6 {[%emt 0:00:15]} 3. Bb5+ {[%emt 0:00:05]} Bd7 {[%emt 0:00:06]} 4. Bxd7+ {[%emt 0:00:06]} Nxd7 {[%emt 0:00:01]} 5. O-O {[%emt 0:00:10]} Ngf6 {[%emt 0:00:07]} 6. Re1 {[%emt 0:00:06]} e6 {[%emt 0:00:25]} 7. c3 {[%emt 0:00:05]} Be7 {[%emt 0:00:04]} 8. d4 {[%emt 0:00:05]} cxd4 {[%emt 0:00:04]} 9. cxd4 {[%emt 0:00:03]} d5 {[%emt 0:00:02]} 10. e5 {[%emt 0:00:06]} Ne4 {[%emt 0:00:01]} 11. a3 {[%emt 0:00:06]} O-O {[%emt 0:00:24]} 12. Qd3 {[%emt 0:00:03]} Qb6 {[%emt 0:08:42]} 13. Nbd2 {[%emt 0:00:50]} Nxd2 {[%emt 0:00:06]} 14. Bxd2 {[%emt 0:00:01]} Rfc8 {[%emt 0:17:04]} 15. h4 {[%emt 0:05:02]} a6 {[%emt 0:03:16]} 16. Re3 {[%emt 0:07:52]} Qc6 {[%emt 0:07:47]} 17. Rc1 {[%emt 0:04:28]} Qa4 {[%emt 0:00:07]} 18. Bc3 {[%emt 0:00:06]} b5 {[%emt 0:01:28]} 19. Nh2 {[%emt 0:13:18]} a5 {[%emt 0:02:49]} 20. Rce1 {[%emt 0:06:58]} Qb3 {[%emt 0:00:37]} 21. Rg3 {[%emt 0:08:42]} b4 {[%emt 0:01:03]} 22. Ng4 {[%emt 0:27:55]} Kh8 {[%emt 0:00:26]} 23. Qb5 {[%emt 0:07:48]} Qc4 {[%emt 0:02:03]} 24. Qxd7 {[%emt 0:00:31]} Rc7 {[%emt 0:00:01]} 25. b3 {[%emt 0:02:50]} Qxc3 {[%emt 0:00:24]} 26. Rxc3 {[%emt 0:00:09]} Rxd7 {[%emt 0:00:01]} 27. Rc2 {[%emt 0:00:33]} bxa3 {[%emt 0:00:11]} 28. g3 {[%emt 0:00:25]} h5 {[%emt 0:00:06]} 29. Ne3 {[%emt 0:00:05]} Rb8 {[%emt 0:00:09]} 30. Ra2 {[%emt 0:00:38]} Rxb3 {[%emt 0:00:48]} 31. Rea1 {[%emt 0:00:04]} Rc7 {[%emt 0:00:28]} 32. Nd1 {[%emt 0:01:59]} Rd3 {[%emt 0:00:21]} 33. Kf1 {[%emt 0:00:08]} Rxd4 {[%emt 0:00:07]} 34. f3 {[%emt 0:00:04]} Rdc4 {[%emt 0:00:17]} 35. Ke2 {[%emt 0:00:12]} Rc2+ {[%emt 0:00:09]} 36. Kd3 {[%emt 0:00:10]} Rxa2 {[%emt 0:00:06]} 37. Rxa2 {[%emt 0:00:03]} Bb4 {[%emt 0:00:16]} 38. Ke2 {[%emt 0:00:37]} Rc1 {[%emt 0:00:09]} 39. Ne3 {[%emt 0:00:51]} Rb1 {[%emt 0:00:27]} 40. Nd1 {[%emt 0:00:07]} d4 {[%emt 0:00:10]} 41. g4 {[%emt 0:00:20]} d3+ {[%emt 0:00:09]} 42. Kxd3 {[%emt 0:00:04]} Rxd1+ {[%emt 0:00:08]} 43. Ke4 {[%emt 0:00:04]} Rd2 {[%emt 0:00:18]} 44. Ra1 {[%emt 0:00:06]} a2 {[%emt 0:00:07]} 45. Kf4 {[%emt 0:00:12]} Bc3 {[%emt 0:00:06]} 46. Rc1 {[%emt 0:00:10]} 0-1

[Event "Western Asian Juniors Chess-ch 2023"]
[Site "Colombo"]
[Date "2023.11.30"]
[Round "1.10"]
[White "Halynyazow, Vepaly"]
[Black "Kodithuwakku, K K Dinujaya"]
[Result "1-0"]
[ECO "D44"]
[WhiteElo "2020"]
[BlackElo "1493"]
[Annotator "NA RC"]
[PlyCount "63"]
[EventDate "2023.11.30"]
[EventCountry "SRI"]
[SourceTitle "playchess.com"]
[Source "ChessBase"]
[SourceQuality "1"]
[TimeControl "5400+30"]

1. d4 {[%emt 0:00:08]} Nf6 {[%emt 1:31:00]} 2. c4 {[%emt 0:00:41]} e6 {[%emt 0:00:00]} 3. Nf3 {[%emt 0:00:31]} d5 {[%emt 0:00:00]} 4. Bg5 {[%emt 0:00:15]} Bb4+ {[%emt 0:00:00]} 5. Nc3 {[%emt 0:00:20]} dxc4 {[%emt 0:00:00]} 6. e3 {[%emt 0:02:43]} b5 {[%emt 0:00:00]} 7. a4 {[%emt 0:00:40]} c6 {[%emt 0:00:00]} 8. Be2 {[%emt 0:03:11]} Bb7 {[%emt 0:00:00]} 9. O-O {[%emt 0:00:25]} a6 {[%emt 0:00:00]} 10. Ne5 {[%emt 0:01:30]} Nbd7 {[%emt 0:00:00]} 11. axb5 {[%emt 0:07:46]} cxb5 {[%emt 0:00:00]} 12. Bf3 {[%emt 0:00:12]} Qb6 {[%emt 0:00:00]} 13. Nxd7 {[%emt 0:23:00]} Nxd7 {[%emt 0:00:00]} 14. Bxb7 {[%emt 0:00:11]} Qxb7 {[%emt 0:00:00]} 15. Qg4 {[%emt 0:00:28]} Nf6 {[%emt 0:00:00]} 16. Bxf6 {[%emt 0:10:01]} gxf6 {[%emt 0:00:00]} 17. Ne4 {[%emt 0:10:52]} f5 {[%emt 0:00:00]} 18. Nf6+ {[%emt 0:02:39]} Ke7 {[%emt 0:08:30]} 19. Qh4 {[%emt 0:01:50]} Kd6 {[%emt 0:00:30]} 20. d5 {[%emt 0:06:52]} Kc7 {[%emt 0:00:00]} 21. b3 {[%emt 0:02:17]} exd5 {[%emt 0:00:00]} 22. Rfd1 {[%emt 0:00:25]} Rad8 {[%emt 0:00:00]} 23. Qf4+ {[%emt 0:00:25]} Kb6 {[%emt 0:00:00]} 24. Qxf5 {[%emt 0:00:15]} Bc3 {[%emt 0:00:00]} 25. Ra3 {[%emt 0:09:18]} Bb4 {[%emt 0:00:00]} 26. Raa1 {[%emt 0:04:21]} Bc3 {[%emt 0:00:00]} 27. Nxd5+ {[%emt 0:06:17]} Rxd5 {[%emt 0:00:00]} 28. Rxd5 {[%emt 0:00:06]} Bxa1 {[%emt 0:00:00]} 29. Rd6+ {[%emt 0:00:04]} Ka5 {[%emt 0:00:00]} 30. Qb1 {[%emt 0:02:12]} Be5 {[%emt 0:00:00]} 31. b4+ {[%emt 0:00:26]} Ka4 {[%emt 0:00:00]} 32. Rd2 {[%emt 0:00:05]} 1-0

[Event "Western Asian Juniors Chess-ch 2023"]
[Site "Colombo"]
[Date "2023.11.30"]
[Round "2.1"]
[White "Liyanage, Ranindu Dilshan"]
[Black "Halynyazow, Vepaly"]
[Result "1/2-1/2"]
[ECO "B41"]
[WhiteElo "2400"]
[BlackElo "2020"]
[Annotator "TA"]
[PlyCount "50"]
[EventDate "2023.11.30"]
[EventCountry "SRI"]
[SourceTitle "playchess.com"]
[Source "ChessBase"]
[SourceQuality "1"]
[TimeControl "5400+30"]

{[%evp 12,50,63,54,62,48,62,64,95,88,113,117,108,96,89,93,89,90,96,88,137,118,119,122,141,89,124,81,99,105,110,108,112,72,72,77,79,78,74,88,108]} 1. c4 {[%emt 0:00:46]} Nf6 {[%emt 0:03:20]} 2. Nc3 {[%emt 0:00:19]} e6 {[%emt 0:00:18]} 3. e4 {[%emt 0:04:10]} d6 {[%emt 0:04:21]} 4. d4 {[%emt 0:00:49]} c5 {[%emt 0:01:31]} 5. Nf3 {[%emt 0:00:56]} cxd4 {[%emt 0:00:53]} 6. Nxd4 {[%emt 0:00:17]} a6 {[%emt 0:00:29]} 7. Be3 {[%emt 0:01:25]} Be7 {[%emt 0:01:07] B41: Sicilian: Kan Variation: 5 c4.} 8. Be2 {[%emt 0:00:37] White is more active.} Qc7 {[%emt 0:00:21]} 9. Rc1 {[%emt 0:00:29]} Nbd7 {[%emt 0:00:15] White is slightly better.} 10. f3 {[%emt 0:00:26]} b6 {[%emt 0:00:40] [#]} 11. g4 $1 {[%emt 0:05:06]} h6 {[%emt 0:04:24]} 12. h4 {[%emt 0:04:56]} Bb7 {[%emt 0:00:14]} 13. Kd2 {[%emt 0:01:31][%cal Be1d2,Bd2c2,Bc2b1][%mdl 32]} Ne5 {[%emt 0:05:38]} 14. Kc2 {[%emt 0:01:21] [#]} (14. g5 {is interesting.} Nfd7 15. gxh6 gxh6 16. Kc2) 14... Nfd7 $146 {[%emt 0:10:27]} ({Predecessor:} 14... O-O-O 15. Kb1 Kb8 16. Rg1 g5 17. hxg5 hxg5 18. Qd2 Rdg8 19. Rh1 Rxh1 20. Rxh1 Qd8 21. Nc2 Nfd7 22. b3 Rg7 23. Bd1 Rg8 24. Be2 Rg7 25. Bd1 {½-½ Petersson,B (2247)-Nyander,J (2278) SWE-chT 1920 Superettan 2019 (9)}) 15. Kb1 {[%emt 0:00:49]} Nc6 {[%emt 0:02:12]} ({Better is} 15... Rc8) 16. Qd2 {[%emt 0:15:39]} Nxd4 {[%emt 0:09:55]} 17. Bxd4 {[%emt 0:02:32]} ({Don't do} 17. Qxd4 Bf6 18. Qd2 Ke7 $14) 17... Bf6 {[%emt 0:10:56]} 18. Be3 {[%emt 0:06:47]} ({White should play} 18. Bxf6 Nxf6 19. b4) 18... O-O-O {[%emt 0:02:46] White is better.} 19. Bf4 {[%emt 0:14:47]} Be5 {[%emt 0:05:51]} 20. Rhd1 {[%emt 0:02:10]} Kb8 {[%emt 0:01:25]} 21. Be3 {[%emt 0:02:12]} Rc8 {[%emt 0:05:50]} 22. Na4 {[%emt 0:12:50]} Nc5 {[%emt 0:03:52]} 23. Qb4 {[%emt 0:00:16]} Ka7 {[%emt 0:00:45][%cal Of7f5]} 24. Nc3 {[%emt 0:02:38]} g5 {[%emt 0:05:22]} 25. Qa3 {[%emt 0:03:22] [#] Strongly threatening Nb5+.} Kb8 {[%emt 0:00:08] Weighted Error Value: White=0.08 (flawless) /Black=0.10 (very precise)} 1/2-1/2

[Event "Western Asian Juniors Chess-ch 2023"]
[Site "Colombo"]
[Date "2023.11.30"]
[Round "2.2"]
[White "Dissanayake, R K T"]
[Black "De Silva, L M S T"]
[Result "1/2-1/2"]
[ECO "C88"]
[WhiteElo "1865"]
[BlackElo "2394"]
[Annotator "RC"]
[PlyCount "71"]
[EventDate "2023.11.30"]
[EventCountry "SRI"]
[SourceTitle "playchess.com"]
[Source "ChessBase"]
[SourceQuality "1"]
[TimeControl "5400+30"]

1. e4 {[%emt 0:00:04]} e5 {[%emt 0:01:13]} 2. Nf3 {[%emt 0:00:06]} Nc6 {[%emt 0:00:06]} 3. Bb5 {[%emt 0:00:04]} a6 {[%emt 0:00:05]} 4. Ba4 {[%emt 0:00:03]} Nf6 {[%emt 0:00:05]} 5. O-O {[%emt 0:00:05]} Be7 {[%emt 0:00:04]} 6. Re1 {[%emt 0:00:05]} b5 {[%emt 0:00:06]} 7. Bb3 {[%emt 0:00:04]} O-O {[%emt 0:00:05]} 8. d4 {[%emt 0:00:06]} Nxd4 {[%emt 0:00:54]} 9. Nxd4 {[%emt 0:01:20]} exd4 {[%emt 0:00:07]} 10. e5 {[%emt 0:00:04]} Ne8 {[%emt 0:00:22]} 11. Qxd4 {[%emt 0:00:20]} c5 {[%emt 0:00:13]} 12. Qe4 {[%emt 0:01:00]} Rb8 {[%emt 0:00:20]} 13. c4 {[%emt 0:02:21]} Bb7 {[%emt 0:00:07]} 14. Qe2 {[%emt 0:00:08]} Nc7 {[%emt 0:05:29]} 15. Nc3 {[%emt 0:07:13]} d6 {[%emt 0:12:32]} 16. Bf4 {[%emt 0:14:10]} Ne6 {[%emt 0:07:38]} 17. Bg3 {[%emt 0:04:56]} Nd4 {[%emt 0:08:08]} 18. Qd1 {[%emt 0:03:32]} dxe5 {[%emt 0:07:51]} 19. Bxe5 {[%emt 0:03:10]} Bd6 {[%emt 0:00:33]} 20. cxb5 {[%emt 0:09:42]} axb5 {[%emt 0:11:28]} 21. Bxd4 {[%emt 0:01:06]} cxd4 {[%emt 0:00:20]} 22. Ne4 {[%emt 0:02:14]} Bb4 {[%emt 0:02:54]} 23. Re2 {[%emt 0:02:29]} d3 {[%emt 0:06:40]} 24. Re3 {[%emt 0:01:36]} Bxe4 {[%emt 0:04:36]} 25. Rxe4 {[%emt 0:00:09]} Ba5 {[%emt 0:00:16]} 26. Qf3 {[%emt 0:02:53]} d2 {[%emt 0:03:49]} 27. Rd1 {[%emt 0:01:07]} Qd7 {[%emt 0:01:16]} 28. g3 {[%emt 0:01:18]} Rb6 {[%emt 0:06:14]} 29. Rf4 {[%emt 0:03:28]} Rd6 {[%emt 0:01:06]} 30. Kg2 {[%emt 0:01:42]} Bd8 {[%emt 0:02:21]} 31. Bc2 {[%emt 0:03:31]} Bf6 {[%emt 0:01:43]} 32. b4 {[%emt 0:03:15]} Re8 {[%emt 0:01:31]} 33. h4 {[%emt 0:06:29]} Qa7 {[%emt 0:03:47]} 34. Bb3 {[%emt 0:04:52]} Qd7 {[%emt 0:00:15]} 35. Bc2 {[%emt 0:02:00]} Qa7 {[%emt 0:01:33]} 36. Bb3 {[%emt 0:01:22]} 1/2-1/2

[Event "Western Asian Juniors Chess-ch 2023"]
[Site "Colombo"]
[Date "2023.11.30"]
[Round "2.3"]
[White "Harshavardhan G B"]
[Black "Nabil Nazar, Mohamed"]
[Result "1-0"]
[ECO "A57"]
[WhiteElo "2390"]
[BlackElo "1803"]
[Annotator "RC"]
[PlyCount "99"]
[EventDate "2023.11.30"]
[EventCountry "SRI"]
[SourceTitle "playchess.com"]
[Source "ChessBase"]
[SourceQuality "1"]
[TimeControl "5400+30"]

1. d4 {[%emt 0:01:04]} Nf6 {[%emt 0:00:22]} 2. c4 {[%emt 0:00:28]} c5 {[%emt 0:00:02]} 3. d5 {[%emt 0:00:20]} b5 {[%emt 0:00:04]} 4. Qc2 {[%emt 0:04:19]} bxc4 {[%emt 0:01:42]} 5. e4 {[%emt 0:00:22]} e6 {[%emt 0:00:26]} 6. Bxc4 {[%emt 0:03:01]} exd5 {[%emt 0:00:18]} 7. exd5 {[%emt 0:00:13]} Be7 {[%emt 0:01:06]} 8. Ne2 {[%emt 0:01:53]} O-O {[%emt 0:00:32]} 9. O-O {[%emt 0:00:12]} d6 {[%emt 0:00:07]} 10. Nbc3 {[%emt 0:00:44]} Nbd7 {[%emt 0:00:14]} 11. Ng3 {[%emt 0:02:25]} Nb6 {[%emt 0:02:27]} 12. b3 {[%emt 0:00:27]} Re8 {[%emt 0:03:21]} 13. Bb2 {[%emt 0:08:28]} a5 {[%emt 0:02:51]} 14. a4 {[%emt 0:01:03]} Rb8 {[%emt 0:44:17]} 15. h3 {[%emt 0:03:00]} Bd7 {[%emt 0:03:20]} 16. Rad1 {[%emt 0:02:50]} Bf8 {[%emt 0:02:18]} 17. Bc1 {[%emt 0:01:24]} h6 {[%emt 0:03:36]} 18. Bf4 {[%emt 0:02:40]} Qc8 {[%emt 0:02:23]} 19. Kh2 {[%emt 0:02:03]} Qb7 {[%emt 0:06:54]} 20. Qd3 {[%emt 0:05:10]} Kh8 {[%emt 0:00:45]} 21. Be3 {[%emt 0:06:32]} Re5 {[%emt 0:04:18]} 22. f4 {[%emt 0:05:04]} Ree8 {[%emt 0:00:47]} 23. f5 {[%emt 0:00:26]} Qc8 {[%emt 0:04:09]} 24. Bf4 {[%emt 0:02:23]} Nxc4 {[%emt 0:03:14]} 25. bxc4 {[%emt 0:00:41]} Rb4 {[%emt 0:00:03]} 26. Ra1 {[%emt 0:00:48]} Qd8 {[%emt 0:02:58]} 27. Bd2 {[%emt 0:01:00]} Rb8 {[%emt 0:03:48]} 28. Nb5 {[%emt 0:01:58]} Ra8 {[%emt 0:00:09]} 29. Bc3 {[%emt 0:00:46]} Bxb5 {[%emt 0:01:01]} 30. axb5 {[%emt 0:00:13]} Nd7 {[%emt 0:00:08]} 31. f6 {[%emt 0:01:07]} g6 {[%emt 0:00:17]} 32. Ra4 {[%emt 0:03:18]} Ra7 {[%emt 0:03:59]} 33. Qc2 {[%emt 0:01:57]} Ne5 {[%emt 0:01:43]} 34. Qa2 {[%emt 0:02:40]} Qa8 {[%emt 0:00:49]} 35. Re1 {[%emt 0:02:24]} Nd7 {[%emt 0:00:51]} 36. Rxe8 {[%emt 0:07:50]} Qxe8 {[%emt 0:00:02]} 37. Rxa5 {[%emt 0:00:10]} Rxa5 {[%emt 0:00:12]} 38. Qxa5 {[%emt 0:00:07]} Qb8 {[%emt 0:00:16]} 39. Qa6 {[%emt 0:02:35]} Nb6 {[%emt 0:01:41]} 40. Ba5 {[%emt 0:01:07]} Nd7 {[%emt 0:01:31]} 41. b6 {[%emt 0:00:58]} h5 {[%emt 0:00:24]} 42. b7 {[%emt 0:01:13]} h4 {[%emt 0:00:32]} 43. Qa8 {[%emt 0:04:25]} hxg3+ {[%emt 0:00:14]} 44. Kxg3 {[%emt 0:00:09]} Kh7 {[%emt 0:00:37]} 45. h4 {[%emt 0:00:21]} g5 {[%emt 0:00:57]} 46. hxg5 {[%emt 0:00:22]} Kg6 {[%emt 0:00:07]} 47. Kf4 {[%emt 0:00:34]} Kh7 {[%emt 0:01:07]} 48. Kf5 {[%emt 0:00:14]} Kg8 {[%emt 0:00:19]} 49. g6 {[%emt 0:00:30]} fxg6+ {[%emt 0:00:12]} 50. Ke4 {[%emt 0:21:32]} 1-0

[Event "Western Asian Juniors Chess-ch 2023"]
[Site "Colombo"]
[Date "2023.11.30"]
[Round "2.4"]
[White "Raahul V S"]
[Black "Liyanage, Pesandu Rashmitha"]
[Result "1/2-1/2"]
[ECO "A37"]
[WhiteElo "2350"]
[BlackElo "1766"]
[Annotator "RC"]
[PlyCount "58"]
[EventDate "2023.11.30"]
[EventCountry "SRI"]
[SourceTitle "playchess.com"]
[Source "ChessBase"]
[SourceQuality "1"]
[TimeControl "5400+30"]

1. c4 {[%emt 0:00:01]} c5 {[%emt 0:00:56]} 2. Nc3 {[%emt 0:00:24]} g6 {[%emt 0:00:03]} 3. Nf3 {[%emt 0:00:39]} Bg7 {[%emt 0:00:12]} 4. g3 {[%emt 0:02:00]} Nc6 {[%emt 0:00:07]} 5. Bg2 {[%emt 0:00:04]} e5 {[%emt 0:00:45]} 6. O-O {[%emt 0:00:49]} Nge7 {[%emt 0:00:28]} 7. d3 {[%emt 0:00:05]} O-O {[%emt 0:00:58]} 8. Ne1 {[%emt 0:02:29]} d6 {[%emt 0:04:40]} 9. Nc2 {[%emt 0:00:08]} Be6 {[%emt 0:01:07]} 10. Ne3 {[%emt 0:07:02]} Rb8 {[%emt 0:03:10]} 11. Ned5 {[%emt 0:04:23]} Nb4 {[%emt 0:12:51]} 12. f4 {[%emt 0:13:53]} Nbxd5 {[%emt 0:05:47]} 13. cxd5 {[%emt 0:00:38]} Bc8 {[%emt 0:04:30]} 14. fxe5 {[%emt 0:04:03]} Bxe5 {[%emt 0:00:36]} 15. Bf4 {[%emt 0:00:19]} Bxf4 {[%emt 0:07:29]} 16. Rxf4 {[%emt 0:00:14]} b5 {[%emt 0:01:32]} 17. Qd2 {[%emt 0:05:26]} b4 {[%emt 0:11:36]} 18. Nd1 {[%emt 0:03:33]} f5 {[%emt 0:08:35]} 19. Ne3 {[%emt 0:07:05]} g5 {[%emt 0:05:32]} 20. Rf2 {[%emt 0:00:05]} Ng6 {[%emt 0:00:25]} 21. Raf1 {[%emt 0:03:58]} f4 {[%emt 0:00:42]} 22. Nc4 {[%emt 0:00:04]} Ba6 {[%emt 0:07:15]} 23. Be4 {[%emt 0:02:09]} Bxc4 {[%emt 0:01:31]} 24. dxc4 {[%emt 0:00:04]} Qf6 {[%emt 0:00:10]} 25. Bxg6 {[%emt 0:06:00]} Qxg6 {[%emt 0:00:07]} 26. gxf4 {[%emt 0:00:05]} Rxf4 {[%emt 0:00:09]} 27. Rxf4 {[%emt 0:00:44]} gxf4+ {[%emt 0:00:01]} 28. Kf2 {[%emt 0:00:02]} Qh6 {[%emt 0:03:29]} 29. Rg1+ {[%emt 0:02:49]} Kh8 {[%emt 0:01:52]} 1/2-1/2